[Event "56th Rubinstein Memorial D 2020"]
[Site "Polanica Zdroj"]
[Date "2020.08.19"]
[Round "5.16"]
[White "Bukala, Weronika"]
[Black "Zarzecki, Dymitr Stanislaw"]
[Result "1-0"]
[ECO "A40"]
[WhiteElo "1504"]
[BlackElo "1596"]
[Annotator "NA RC"]
[PlyCount "119"]
[EventDate "2020.08.15"]
[EventType "swiss"]
[EventCountry "POL"]
[SourceTitle "playchess.com"]
[Source "ChessBase"]
[SourceQuality "1"]
[TimeControl "40/5400+30:1800+30"]

1. d4 {[%emt 0:00:00]} g6 {[%emt 0:00:00]} 2. c4 {[%emt 0:00:04]} Bg7 {[%emt 0:00:00]} 3. Nc3 {[%emt 0:00:05]} Nf6 {[%emt 0:00:38]} 4. Bg5 {[%emt 0:00:12]} d6 {[%emt 0:00:55]} 5. e3 {[%emt 0:00:11]} O-O {[%emt 0:01:07]} 6. Bd3 {[%emt 0:00:46]} Nbd7 {[%emt 0:04:33]} 7. h4 {[%emt 0:05:03]} h5 8. Qc2 {[%emt 0:02:18]} c5 {[%emt 0:24:17]} 9. O-O-O {[%emt 0:05:47]} cxd4 {[%emt 0:07:21]} 10. exd4 {[%emt 0:00:22]} b5 {[%emt 0:07:25]} 11. Nxb5 {[%emt 0:07:07]} Ba6 {[%emt 0:09:07]} 12. Qa4 {[%emt 0:06:53]} Bxb5 {[%emt 0:02:13]} 13. cxb5 {[%emt 0:00:46]} Nb6 {[%emt 0:02:57]} 14. Qb3 {[%emt 0:00:47]} d5 {[%emt 0:06:21]} 15. Kb1 {[%emt 0:01:32]} a6 {[%emt 0:10:02]} 16. bxa6 {[%emt 0:07:02]} Nc4 {[%emt 0:01:14]} 17. Bxf6 {[%emt 0:11:09]} Bxf6 {[%emt 0:11:03]} 18. Bxc4 {[%emt 0:01:29]} dxc4 {[%emt 0:01:40]} 19. Qxc4 {[%emt 0:00:34]} Qb6 {[%emt 0:04:47]} 20. Nf3 {[%emt 0:04:18]} Rfc8 {[%emt 0:00:45]} 21. Qd3 {[%emt 0:01:00]} Rxa6 {[%emt 0:00:28]} 22. Rd2 {[%emt 0:03:32]} Rca8 {[%emt 0:02:15]} 23. b3 {[%emt 0:00:23]} Qb4 {[%emt 0:01:48]} 24. Rc1 {[%emt 0:01:49]} Rd6 {[%emt 0:00:27]} 25. Rc4 {[%emt 0:00:54]} Qb6 {[%emt 0:00:32]} 26. Qc3 {[%emt 0:02:28]} Kg7 {[%emt 0:00:28]} 27. Qe3 {[%emt 0:02:18]} Re6 {[%emt 0:00:31]} 28. Qd3 {[%emt 0:01:00]} Rd6 {[%emt 0:00:28]} 29. Qe4 {[%emt 0:00:28]} Rad8 {[%emt 0:00:34]} 30. Ne5 {[%emt 0:01:44]} Rd5 {[%emt 0:00:31]} 31. Nc6 {[%emt 0:05:22]} R8d7 {[%emt 0:00:28]} 32. g4 {[%emt 0:02:32]} e5 {[%emt 0:00:32]} 33. g5 {[%emt 0:01:29]} Bd8 {[%emt 0:00:28]} 34. Nxe5 {[%emt 0:00:31]} R7d6 {[%emt 0:00:31]} 35. Rc6 {[%emt 0:03:04]} Qa5 {[%emt 0:00:31]} 36. Rxd6 {[%emt 0:01:13]} Rxd6 {[%emt 0:00:31]} 37. Nc4 {[%emt 0:00:16]} Qb4 {[%emt 0:00:28]} 38. Qe5+ {[%emt 0:00:26]} Rf6 {[%emt 0:00:31]} 39. gxf6+ {[%emt 0:00:24]} Bxf6 {[%emt 0:00:09]} 40. Qa5 {[%emt 0:00:31]} Qe7 {[%emt 0:00:51]} 41. Qc3 {[%emt 0:31:06]} Bxh4 {[%emt 0:30:30]} 42. d5+ {[%emt 0:00:25]} Bf6 {[%emt 0:00:14]} 43. Qe3 {[%emt 0:00:34]} Qd8 {[%emt 0:00:45]} 44. d6 {[%emt 0:00:29]} Bg5 {[%emt 0:00:31]} 45. f4 {[%emt 0:00:17]} Bf6 {[%emt 0:00:27]} 46. d7 {[%emt 0:00:25]} Qa8 {[%emt 0:00:33]} 47. Ne5 {[%emt 0:00:54]} Qh1+ {[%emt 0:00:32]} 48. Kb2 {[%emt 0:00:39]} Qa8 {[%emt 0:00:28]} 49. Qd4 {[%emt 0:00:18]} Qd8 {[%emt 0:00:30]} 50. Qd5 {[%emt 0:00:16]} Kh6 {[%emt 0:00:31]} 51. Kb1 {[%emt 0:00:25]} h4 {[%emt 0:00:29]} 52. Nxf7+ {[%emt 0:00:13]} Kg7 {[%emt 0:00:29]} 53. Nxd8 {[%emt 0:00:07]} Bxd8 {[%emt 0:00:07]} 54. Qe5+ {[%emt 0:00:07]} Kh7 {[%emt 0:00:31]} 55. Rd6 {[%emt 0:00:34]} h3 {[%emt 0:00:50]} 56. Qe6 {[%emt 0:00:17]} h2 {[%emt 0:00:34]} 57. Qxg6+ {[%emt 0:00:05]} Kh8 {[%emt 0:00:10]} 58. Qh6+ {[%emt 0:00:09]} Kg8 {[%emt 0:00:06]} 59. Rg6+ {[%emt 0:00:07]} Kf7 {[%emt 0:00:17]} 60. Qg7# {[%emt 0:00:05]} 1-0

[Event "56th Rubinstein Memorial D 2020"]
[Site "Polanica Zdroj"]
[Date "2020.08.19"]
[Round "5.17"]
[White "Bialik, Nikodem"]
[Black "Garwacki, Kornel"]
[Result "1-0"]
[ECO "C44"]
[WhiteElo "1552"]
[BlackElo "1492"]
[Annotator "NA RC"]
[PlyCount "99"]
[EventDate "2020.08.15"]
[EventType "swiss"]
[EventCountry "POL"]
[SourceTitle "playchess.com"]
[Source "ChessBase"]
[SourceQuality "1"]
[TimeControl "40/5400+30:1800+30"]

1. e4 {[%emt 0:08:36]} e5 {[%emt 0:00:00]} 2. Nf3 {[%emt 0:00:15]} Nc6 {[%emt 0:00:00]} 3. d4 {[%emt 0:00:38]} exd4 {[%emt 0:00:00]} 4. Nxd4 {[%emt 0:00:09]} Nf6 {[%emt 0:00:01]} 5. Nc3 {[%emt 0:01:15]} Bb4 {[%emt 0:00:10]} 6. Nxc6 {[%emt 0:00:35]} bxc6 {[%emt 0:00:08]} 7. Bd3 {[%emt 0:00:12]} d5 {[%emt 0:01:06]} 8. Bd2 {[%emt 0:07:35]} O-O {[%emt 0:11:03]} 9. O-O {[%emt 0:00:30]} Bxc3 {[%emt 0:00:30]} 10. Bxc3 {[%emt 0:00:30]} Nxe4 11. Bxe4 {[%emt 0:00:30]} dxe4 12. Re1 {[%emt 0:00:30]} f5 {[%emt 0:01:30]} 13. Qe2 {[%emt 0:01:20]} Bb7 {[%emt 0:03:15]} 14. Rad1 {[%emt 0:01:01]} Qe8 {[%emt 0:02:02]} 15. Qc4+ {[%emt 0:04:10]} Kh8 {[%emt 0:08:56]} 16. Re3 {[%emt 0:05:17]} Rd8 {[%emt 0:06:18]} 17. Rxd8 {[%emt 0:07:57]} Qxd8 {[%emt 0:00:10]} 18. h3 {[%emt 0:00:35]} Qd1+ {[%emt 0:02:08]} 19. Kh2 {[%emt 0:00:11]} Qd5 {[%emt 0:00:33]} 20. Qd4 {[%emt 0:04:09]} Qxd4 {[%emt 0:03:21]} 21. Bxd4 {[%emt 0:00:09]} h6 {[%emt 0:07:15]} 22. Rg3 {[%emt 0:01:31]} Rf7 {[%emt 0:01:50]} 23. Rb3 {[%emt 0:00:32]} Ba6 {[%emt 0:00:39]} 24. Ra3 {[%emt 0:01:05]} Bc4 {[%emt 0:00:52]} 25. Rxa7 {[%emt 0:04:40]} Kh7 {[%emt 0:02:15]} 26. b3 {[%emt 0:03:17]} Be2 {[%emt 0:01:20]} 27. c3 {[%emt 0:01:18]} g5 {[%emt 0:01:30]} 28. Ra5 {[%emt 0:01:37]} Kg6 {[%emt 0:03:47]} 29. Re5 {[%emt 0:00:27]} Kh5 {[%emt 0:06:56]} 30. Re6 {[%emt 0:01:02]} Bd3 {[%emt 0:02:34]} 31. Rxc6 {[%emt 0:00:47]} g4 {[%emt 0:01:05]} 32. b4 {[%emt 0:16:55]} gxh3 {[%emt 0:00:57]} 33. Kxh3 {[%emt 0:01:38]} f4 {[%emt 0:01:29]} 34. Rc5+ {[%emt 0:02:00]} Kg6 {[%emt 0:00:35]} 35. a4 {[%emt 0:06:05]} Bf1 {[%emt 0:03:43]} 36. Kh2 {[%emt 0:04:32]} Rf5 {[%emt 0:05:43]} 37. Rc6+ {[%emt 0:04:06]} Kh5 {[%emt 0:01:54]} 38. Bg7 {[%emt 0:01:33]} Kg4 {[%emt 0:00:30]} 39. Kg1 {[%emt 0:01:49]} Bd3 {[%emt 0:02:03]} 40. Bxh6 {[%emt 0:02:04]} f3 {[%emt 0:09:32]} 41. Rxc7 {[%emt 0:31:13]} fxg2 {[%emt 0:30:43]} 42. Kxg2 {[%emt 0:00:31]} Be2 {[%emt 0:01:17]} 43. Rg7+ {[%emt 0:00:38]} Kh5 {[%emt 0:03:09]} 44. Be3 {[%emt 0:00:23]} Rd5 {[%emt 0:00:43]} 45. Re7 {[%emt 0:01:16]} Bf3+ {[%emt 0:00:17]} 46. Kg3 {[%emt 0:00:38]} Rf5 {[%emt 0:02:18]} 47. Re6 {[%emt 0:00:22]} Rg5+ {[%emt 0:01:00]} 48. Bxg5 {[%emt 0:00:10]} Kxg5 {[%emt 0:00:09]} 49. Re5+ {[%emt 0:00:11]} Kf6 {[%emt 0:00:07]} 50. Kf4 {[%emt 0:00:06]} 1-0

[Event "56th Rubinstein Memorial D 2020"]
[Site "Polanica Zdroj"]
[Date "2020.08.19"]
[Round "5.18"]
[White "Wolska, Marta"]
[Black "Jurkowska, Magdalena"]
[Result "1-0"]
[ECO "D53"]
[WhiteElo "1551"]
[BlackElo "1465"]
[Annotator "NA RC"]
[PlyCount "185"]
[EventDate "2020.08.15"]
[EventType "swiss"]
[EventCountry "POL"]
[SourceTitle "playchess.com"]
[Source "ChessBase"]
[SourceQuality "1"]
[TimeControl "40/5400+30:1800+30"]

1. d4 {[%emt 0:00:00]} d5 {[%emt 0:00:00]} 2. c4 {[%emt 0:00:00]} e6 {[%emt 0:00:00]} 3. Nc3 {[%emt 0:00:00]} Nf6 {[%emt 0:00:16]} 4. Bg5 {[%emt 0:00:28]} Be7 {[%emt 0:00:32]} 5. cxd5 {[%emt 0:00:06]} exd5 {[%emt 0:01:10]} 6. e3 {[%emt 0:00:38]} O-O {[%emt 0:13:36]} 7. Bd3 {[%emt 0:01:25]} b6 {[%emt 0:02:23]} 8. Bxf6 {[%emt 0:02:55]} Bxf6 {[%emt 0:00:14]} 9. Qh5 {[%emt 0:00:14]} g6 {[%emt 0:01:40]} 10. Qxd5 {[%emt 0:08:40]} c6 {[%emt 0:00:30]} 11. Qxd8 Rxd8 12. Nge2 {[%emt 0:01:00]} Bb7 {[%emt 0:01:49]} 13. Be4 {[%emt 0:02:55]} Na6 {[%emt 0:03:19]} 14. O-O {[%emt 0:00:27]} Rab8 {[%emt 0:01:46]} 15. Rfd1 {[%emt 0:03:55]} Bg7 {[%emt 0:03:08]} 16. a3 {[%emt 0:01:04]} Nc7 {[%emt 0:03:56]} 17. Bf3 {[%emt 0:00:55]} Ne6 {[%emt 0:00:44]} 18. g3 {[%emt 0:02:00]} Rd7 {[%emt 0:04:04]} 19. Rac1 {[%emt 0:03:28]} Rbd8 {[%emt 0:02:10]} 20. Nf4 {[%emt 0:07:19]} Nxf4 {[%emt 0:00:51]} 21. gxf4 {[%emt 0:00:02]} f5 {[%emt 0:01:45]} 22. Na2 {[%emt 0:05:25]} c5 {[%emt 0:01:27]} 23. Bxb7 {[%emt 0:06:14]} Rxb7 {[%emt 0:01:36]} 24. dxc5 {[%emt 0:00:25]} Rxd1+ {[%emt 0:00:08]} 25. Rxd1 {[%emt 0:00:14]} bxc5 {[%emt 0:00:04]} 26. b4 {[%emt 0:01:11]} cxb4 {[%emt 0:07:27]} 27. axb4 {[%emt 0:00:52]} Bf8 {[%emt 0:00:16]} 28. Rd4 {[%emt 0:01:43]} Rb5 {[%emt 0:00:47]} 29. Kf1 {[%emt 0:01:24]} a5 {[%emt 0:00:31]} 30. bxa5 {[%emt 0:00:55]} Rxa5 {[%emt 0:00:17]} 31. Nc3 {[%emt 0:01:02]} Ra1+ {[%emt 0:02:36]} 32. Rd1 {[%emt 0:00:38]} Ra3 {[%emt 0:01:57]} 33. Nb5 {[%emt 0:00:23]} Ra6 {[%emt 0:02:32]} 34. Rd7 {[%emt 0:02:40]} Ra1+ {[%emt 0:01:34]} 35. Kg2 {[%emt 0:00:07]} Ra2 {[%emt 0:00:57]} 36. Nc3 {[%emt 0:01:01]} Ra6 {[%emt 0:04:04]} 37. Nd5 {[%emt 0:01:05]} Re6 {[%emt 0:00:15]} 38. f3 {[%emt 0:02:07]} Bc5 {[%emt 0:00:41]} 39. Kf2 {[%emt 0:00:35]} h6 {[%emt 0:00:47]} 40. Ke2 {[%emt 0:00:53]} g5 {[%emt 0:00:24]} 41. Rc7 {[%emt 0:31:23]} Bd6 {[%emt 0:30:35]} 42. Rc6 {[%emt 0:01:10]} Kf7 {[%emt 0:02:12]} 43. Nc7 {[%emt 0:03:41]} Rf6 {[%emt 0:06:01]} 44. Nb5 {[%emt 0:01:01]} Be7 {[%emt 0:00:13]} 45. Rxf6+ {[%emt 0:01:20]} Kxf6 {[%emt 0:00:15]} 46. fxg5+ {[%emt 0:00:24]} Kxg5 {[%emt 0:00:38]} 47. Kf2 {[%emt 0:00:20]} Bc5 {[%emt 0:00:39]} 48. Nd4 {[%emt 0:00:29]} Kf6 {[%emt 0:02:16]} 49. f4 {[%emt 0:00:46]} Bb6 {[%emt 0:02:41]} 50. Kf3 {[%emt 0:01:17]} Bc5 {[%emt 0:02:02]} 51. Nb3 {[%emt 0:01:26]} Bb6 {[%emt 0:00:26]} 52. e4 {[%emt 0:00:30]} fxe4+ {[%emt 0:00:21]} 53. Kxe4 {[%emt 0:00:01]} Bg1 {[%emt 0:00:23]} 54. h3 {[%emt 0:00:08]} Ke6 {[%emt 0:02:00]} 55. f5+ {[%emt 0:00:17]} Kf6 {[%emt 0:00:06]} 56. Nd2 {[%emt 0:01:21]} Bf2 {[%emt 0:03:01]} 57. Kf4 {[%emt 0:01:38]} Bd4 {[%emt 0:02:59]} 58. Ne4+ {[%emt 0:01:13]} Kf7 {[%emt 0:00:25]} 59. Nd2 {[%emt 0:02:04]} Kf6 {[%emt 0:00:17]} 60. Nf3 {[%emt 0:00:03]} Bf2 {[%emt 0:00:49]} 61. Nh2 {[%emt 0:00:53]} h5 {[%emt 0:00:48]} 62. Nf3 {[%emt 0:00:12]} Bb6 {[%emt 0:00:37]} 63. Nd2 {[%emt 0:00:40]} Bd4 {[%emt 0:01:00]} 64. Ne4+ {[%emt 0:00:17]} Kf7 {[%emt 0:01:29]} 65. Kg5 {[%emt 0:00:20]} Be3+ {[%emt 0:01:27]} 66. Kxh5 {[%emt 0:00:55]} Bc1 {[%emt 0:00:06]} 67. Kg4 {[%emt 0:00:13]} Be3 {[%emt 0:00:25]} 68. h4 {[%emt 0:00:07]} Bc1 {[%emt 0:00:06]} 69. Kf3 {[%emt 0:01:45]} Ba3 {[%emt 0:02:55]} 70. Nf2 {[%emt 0:03:27]} Bc1 {[%emt 0:01:07]} 71. Kg4 {[%emt 0:00:16]} Be3 {[%emt 0:00:14]} 72. Nh3 {[%emt 0:00:15]} Bc1 {[%emt 0:00:33]} 73. Nf4 {[%emt 0:00:34]} Kf6 {[%emt 0:01:21]} 74. h5 {[%emt 0:00:05]} Kf7 {[%emt 0:00:19]} 75. Kg5 {[%emt 0:02:28]} Bd2 {[%emt 0:00:24]} 76. Kg4 {[%emt 0:00:47]} Bc1 {[%emt 0:00:07]} 77. Nd5 {[%emt 0:00:12]} Bd2 {[%emt 0:01:11]} 78. Kf3 {[%emt 0:00:05]} Bc1 {[%emt 0:00:19]} 79. Ke4 {[%emt 0:00:23]} Bg5 {[%emt 0:00:57]} 80. Nc7 {[%emt 0:01:30]} Bc1 {[%emt 0:04:52]} 81. Ne6 {[%emt 0:00:46]} Kf6 {[%emt 0:00:49]} 82. Nf4 {[%emt 0:00:12]} Kf7 {[%emt 0:00:31]} 83. Nd3 {[%emt 0:01:32]} Bd2 {[%emt 0:01:02]} 84. Nf4 {[%emt 0:01:47]} Bc1 {[%emt 0:00:07]} 85. Nd5 {[%emt 0:00:28]} Bd2 {[%emt 0:00:31]} 86. Ke5 {[%emt 0:00:39]} Bc1 {[%emt 0:00:54]} 87. f6 {[%emt 0:00:35]} Bb2+ {[%emt 0:00:06]} 88. Kf5 {[%emt 0:00:04]} Bc1 {[%emt 0:00:09]} 89. Nc3 {[%emt 0:00:21]} Kf8 {[%emt 0:07:43]} 90. Kg6 {[%emt 0:00:15]} Kg8 {[%emt 0:00:46]} 91. Ne4 {[%emt 0:00:21]} Kh8 {[%emt 0:01:07]} 92. h6 {[%emt 0:00:47]} Bb2 {[%emt 0:00:37]} 93. Ng5 {[%emt 0:01:24]} 1-0

[Event "56th Rubinstein Memorial D 2020"]
[Site "Polanica Zdroj"]
[Date "2020.08.19"]
[Round "5.19"]
[White "Ciborowski, Konrad Jr"]
[Black "Kolodziejski, Grzegorz"]
[Result "1-0"]
[ECO "B34"]
[WhiteElo "1405"]
[BlackElo "1550"]
[Annotator "NA RC"]
[PlyCount "123"]
[EventDate "2020.08.15"]
[EventType "swiss"]
[EventCountry "POL"]
[SourceTitle "playchess.com"]
[Source "ChessBase"]
[SourceQuality "1"]
[TimeControl "40/5400+30:1800+30"]

1. e4 {[%emt 0:00:00]} c5 {[%emt 0:00:00]} 2. Nf3 {[%emt 0:00:00]} Nc6 {[%emt 0:00:00]} 3. d4 {[%emt 0:00:00]} cxd4 {[%emt 0:00:19]} 4. Nxd4 {[%emt 0:00:00]} Nf6 {[%emt 0:00:41]} 5. Nc3 {[%emt 0:00:00]} e5 {[%emt 0:00:20]} 6. Ndb5 {[%emt 0:00:00]} d6 {[%emt 0:00:23]} 7. Nd5 {[%emt 0:00:00]} Nxd5 {[%emt 0:00:51]} 8. exd5 {[%emt 0:00:00]} Nb8 {[%emt 0:00:16]} 9. c4 {[%emt 0:00:03]} Be7 {[%emt 0:00:16]} 10. Be3 {[%emt 0:04:34]} a6 {[%emt 0:01:31]} 11. Nc3 {[%emt 0:00:04]} O-O {[%emt 0:01:43]} 12. f3 {[%emt 0:00:55]} f5 {[%emt 0:01:22]} 13. Bd3 {[%emt 0:00:48]} Bg5 {[%emt 0:04:28]} 14. Bf2 {[%emt 0:00:06]} Nd7 {[%emt 0:00:35]} 15. O-O {[%emt 0:00:27]} Qf6 {[%emt 0:01:58]} 16. Na4 {[%emt 0:08:30]} Qh6 17. Qc2 Qf6 {[%emt 0:05:56]} 18. b4 {[%emt 0:01:40]} Bh6 {[%emt 0:01:51]} 19. c5 {[%emt 0:00:50]} b5 {[%emt 0:00:58]} 20. Nc3 {[%emt 0:06:46]} Qf7 {[%emt 0:02:37]} 21. c6 {[%emt 0:01:29]} Nf6 {[%emt 0:00:12]} 22. Bxf5 {[%emt 0:00:20]} Bxf5 {[%emt 0:01:03]} 23. Qxf5 {[%emt 0:00:13]} Bd2 {[%emt 0:00:08]} 24. Ne4 {[%emt 0:01:31]} Qxd5 {[%emt 0:00:57]} 25. Nxd2 {[%emt 0:02:22]} Qxd2 {[%emt 0:00:08]} 26. Rfd1 {[%emt 0:00:30]} Qxb4 {[%emt 0:00:08]} 27. Qe6+ {[%emt 0:00:04]} Kh8 {[%emt 0:00:12]} 28. Qxd6 {[%emt 0:00:10]} Qxd6 {[%emt 0:00:28]} 29. Rxd6 {[%emt 0:00:04]} e4 {[%emt 0:00:11]} 30. c7 {[%emt 0:06:29]} exf3 {[%emt 0:03:37]} 31. gxf3 {[%emt 0:00:19]} Ne8 {[%emt 0:00:14]} 32. Rc6 {[%emt 0:00:31]} Rc8 {[%emt 0:00:45]} 33. Re1 {[%emt 0:02:08]} Kg8 {[%emt 0:01:59]} 34. Bc5 {[%emt 0:00:20]} Rxc7 {[%emt 0:01:34]} 35. Rxe8 {[%emt 0:01:09]} Rxe8 {[%emt 0:00:09]} 36. Rxc7 {[%emt 0:00:04]} Re2 {[%emt 0:00:12]} 37. a3 {[%emt 0:00:44]} a5 {[%emt 0:01:01]} 38. Ra7 {[%emt 0:00:46]} b4 {[%emt 0:00:04]} 39. axb4 axb4 {[%emt 0:00:06]} 40. Bxb4 {[%emt 0:00:11]} Rc2 {[%emt 0:00:10]} 41. Rd7 {[%emt 0:31:18]} h6 {[%emt 0:30:27]} 42. Bd2 {[%emt 0:00:13]} Kh7 {[%emt 0:00:24]} 43. Kg2 {[%emt 0:00:06]} Kg6 {[%emt 0:00:04]} 44. Kg3 {[%emt 0:00:04]} Kh5 {[%emt 0:00:12]} 45. Bb4 {[%emt 0:03:31]} g6 {[%emt 0:01:50]} 46. Rd8 {[%emt 0:02:22]} g5 {[%emt 0:02:21]} 47. Bf8 {[%emt 0:00:15]} Rc6 {[%emt 0:00:32]} 48. Rd6 {[%emt 0:00:06]} Rxd6 {[%emt 0:00:08]} 49. Bxd6 {[%emt 0:00:05]} Kg6 {[%emt 0:00:11]} 50. Kg4 {[%emt 0:03:53]} h5+ {[%emt 0:00:16]} 51. Kg3 {[%emt 0:00:02]} Kf5 {[%emt 0:00:13]} 52. Be7 {[%emt 0:00:26]} h4+ {[%emt 0:00:42]} 53. Kf2 {[%emt 0:00:06]} Kf4 {[%emt 0:00:24]} 54. Bd6+ {[%emt 0:00:19]} Kf5 {[%emt 0:00:06]} 55. h3 {[%emt 0:00:54]} Ke6 {[%emt 0:00:09]} 56. Bb8 {[%emt 0:00:12]} Kf6 {[%emt 0:00:11]} 57. Ke3 {[%emt 0:00:04]} Kf5 {[%emt 0:00:07]} 58. Bc7 {[%emt 0:00:05]} Kf6 {[%emt 0:00:15]} 59. Ke4 {[%emt 0:00:04]} Kg6 {[%emt 0:00:07]} 60. Ke5 {[%emt 0:00:08]} Kh6 {[%emt 0:00:13]} 61. Kf5 {[%emt 0:00:06]} Kh5 {[%emt 0:00:17]} 62. Bd8 {[%emt 0:00:07]} 1-0

[Event "56th Rubinstein Memorial D 2020"]
[Site "Polanica Zdroj"]
[Date "2020.08.19"]
[Round "5.20"]
[White "Perek, Oskar"]
[Black "Zyla, Tomasz"]
[Result "0-1"]
[ECO "B20"]
[WhiteElo "1447"]
[BlackElo "1543"]
[Annotator "NA RC"]
[PlyCount "80"]
[EventDate "2020.08.15"]
[EventType "swiss"]
[EventCountry "POL"]
[SourceTitle "playchess.com"]
[Source "ChessBase"]
[SourceQuality "1"]
[TimeControl "40/5400+30:1800+30"]

1. e4 {[%emt 0:00:00]} c5 {[%emt 0:00:00]} 2. b4 {[%emt 0:00:00]} cxb4 {[%emt 0:00:47]} 3. d4 {[%emt 0:00:03]} d6 {[%emt 0:01:41]} 4. a3 {[%emt 0:00:40]} bxa3 {[%emt 0:01:09]} 5. c3 {[%emt 0:00:14]} g6 {[%emt 0:02:14]} 6. Nxa3 {[%emt 0:03:03]} Bg7 {[%emt 0:00:38]} 7. Nf3 {[%emt 0:01:23]} Nf6 {[%emt 0:01:11]} 8. Bd3 {[%emt 0:01:37]} Nc6 {[%emt 0:01:35]} 9. Bd2 {[%emt 0:02:35]} O-O {[%emt 0:00:31]} 10. h3 {[%emt 0:01:53]} e5 {[%emt 0:07:18]} 11. d5 {[%emt 0:00:30]} Ne7 {[%emt 0:00:30]} 12. Qc2 {[%emt 0:00:30]} Nd7 13. g4 Nc5 14. Bg5 {[%emt 0:07:18]} f6 {[%emt 0:01:30]} 15. Bh4 {[%emt 0:01:19]} a6 {[%emt 0:01:11]} 16. Rg1 {[%emt 0:02:24]} Bd7 {[%emt 0:01:43]} 17. Qd1 {[%emt 0:03:06]} Qa5 {[%emt 0:03:51]} 18. Ke2 {[%emt 0:02:22]} Qxc3 {[%emt 0:03:54]} 19. Nc4 {[%emt 0:00:34]} Bb5 {[%emt 0:03:44]} 20. Rc1 {[%emt 0:01:05]} Qxd3+ {[%emt 0:00:31]} 21. Qxd3 {[%emt 0:00:06]} Nxd3 {[%emt 0:00:06]} 22. Kxd3 {[%emt 0:00:44]} Rac8 {[%emt 0:00:33]} 23. Nfd2 {[%emt 0:00:38]} Bh6 {[%emt 0:00:23]} 24. g5 {[%emt 0:00:57]} fxg5 {[%emt 0:00:15]} 25. Rxg5 {[%emt 0:00:45]} Rf7 {[%emt 0:09:43]} 26. f3 {[%emt 0:01:25]} Bxg5 {[%emt 0:01:54]} 27. Bxg5 {[%emt 0:00:22]} Kg7 {[%emt 0:01:31]} 28. Ke3 {[%emt 0:00:48]} Bxc4 {[%emt 0:03:29]} 29. Rxc4 {[%emt 0:00:21]} Rxc4 {[%emt 0:00:10]} 30. Nxc4 {[%emt 0:00:09]} Nc8 {[%emt 0:00:19]} 31. Na5 {[%emt 0:00:51]} h6 {[%emt 0:00:13]} 32. Bh4 {[%emt 0:00:54]} g5 {[%emt 0:02:41]} 33. Be1 {[%emt 0:00:13]} Kf8 {[%emt 0:00:17]} 34. Bb4 {[%emt 0:00:43]} Ke8 {[%emt 0:00:16]} 35. Nc4 {[%emt 0:00:32]} Kd7 {[%emt 0:00:20]} 36. Bxd6 {[%emt 0:00:45]} Nxd6 {[%emt 0:00:25]} 37. Nxe5+ {[%emt 0:00:14]} Ke7 {[%emt 0:00:13]} 38. Nxf7 {[%emt 0:00:23]} Nxf7 {[%emt 0:00:10]} 39. Kd4 {[%emt 0:00:14]} Kd6 {[%emt 0:00:13]} 40. h4 {[%emt 0:00:33]} b5 {[%emt 0:00:29]} 0-1

[Event "56th Rubinstein Memorial D 2020"]
[Site "Polanica Zdroj"]
[Date "2020.08.20"]
[Round "6.2"]
[White "Gromczak, Dariusz"]
[Black "Podgorski, Maciej"]
[Result "0-1"]
[ECO "B24"]
[WhiteElo "1785"]
[BlackElo "1810"]
[Annotator "NA RC"]
[PlyCount "85"]
[EventDate "2020.08.15"]
[EventType "swiss"]
[EventCountry "POL"]
[SourceTitle "playchess.com"]
[Source "ChessBase"]
[SourceQuality "1"]
[TimeControl "40/5400+30:1800+30"]

{[%evp 8,81,28,30,41,26,40,29,53,53,93,21,28,26,293,318,412,417,422,375,382,335,362,247,231,275,286,262,270,231,260,193,260,239,267,178,155,178,264,238,286,238,197,197,926,987,32767,250,498,539,522,522,577,454,481,477,485,465,820,584,543,500,989,1104,1646,581,772,496,490,501,479,523,516,563,519,545]} 1. e4 {[%emt 0:00:00]} c5 {[%emt 0:00:00]} 2. Nc3 {[%emt 0:00:00]} Nc6 {[%emt 0:00:34]} 3. Bb5 {[%emt 0:00:45]} g6 {[%emt 0:01:23]} 4. Bxc6 {[%emt 0:07:08]} dxc6 {[%emt 0:01:00]} 5. d3 {[%emt 0:00:59]} Bg7 {[%emt 0:00:45]} 6. Be3 {[%emt 0:02:36]} b6 {[%emt 0:01:37]} 7. f4 {[%emt 0:02:38] B23: Closed Sicilian: Lines without g3.} Nh6 {[%emt 0:04:12]} 8. h3 {[%emt 0:01:49] [#]} e5 $146 {[%emt 0:02:31]} ({Predecessor:} 8... Bd4 9. Qd2 f5 10. Nf3 Be6 11. O-O-O Qd7 12. Ne2 Bxe3 13. Qxe3 O-O-O 14. d4 fxe4 15. dxc5 {1-0 (30) Abergel,T (2521)-Frank,W (1998) Bad Wiessee 2010}) 9. Nf3 {[%emt 0:02:18]} exf4 {[%emt 0:00:38]} 10. Bxf4 {[%emt 0:00:30]} O-O $2 {[%emt 0:01:33]} (10... f6 $14) 11. Qd2 {[%emt 0:01:00]} g5 {[%emt 0:01:37]} (11... Nf5 $142 12. exf5 Re8+ 13. Kf2 Bxf5) 12. Bxg5 {[%emt 0:03:16]} Qd6 {[%emt 0:00:09]} 13. O-O {[%emt 0:12:55]} f5 {[%emt 0:08:08] [#]} 14. e5 $1 {[%emt 0:02:25]} Qe6 {[%emt 0:02:01]} 15. Rae1 {[%emt 0:06:24]} Nf7 {[%emt 0:00:22]} 16. Bf4 {[%emt 0:00:56]} Ba6 {[%emt 0:00:31]} 17. b3 {[%emt 0:03:51]} Kh8 {[%emt 0:00:40]} 18. Qf2 {[%emt 0:05:24]} Rad8 {[%emt 0:03:07]} 19. Re2 {[%emt 0:04:47]} Rg8 {[%emt 0:00:35]} 20. Rfe1 {[%emt 0:01:06]} Bf8 {[%emt 0:00:34]} 21. Qh4 {[%emt 0:04:02]} Be7 {[%emt 0:02:06]} 22. Qh5 {[%emt 0:00:38]} c4 {[%emt 0:02:21]} (22... Rde8 $142 23. a4 Rg7) 23. bxc4 {[%emt 0:01:12]} Bb4 {[%emt 0:00:46]} 24. Ng5 {[%emt 0:04:02]} Nxg5 {[%emt 0:01:47]} 25. Bxg5 {[%emt 0:00:03]} Bxc3 $2 {[%emt 0:00:34]} (25... Rdf8) 26. Bf6+ $1 {[%emt 0:00:53]} Rg7 {[%emt 0:01:51]} 27. Bxd8 $2 {[%emt 0:01:04]} (27. Bxg7+ Kg8 28. Qg5 Bxe1 29. Bf6+ {[%mdl 64] Discovered Attack} Kf8 30. Qg7+ {[%mdl 64] Double Attack} Ke8 31. Qh8+ Kf7 32. Qg7+ Ke8 33. Rxe1) 27... Kg8 $2 {[%emt 0:00:55]} (27... Bxe1 28. Rxe1 Rg6) 28. Bf6 {[%emt 0:04:07]} Rg6 {[%emt 0:00:09]} 29. Rf1 {[%emt 0:00:24]} Bc8 {[%emt 0:00:32]} 30. Qf3 {[%emt 0:00:46]} Bd7 {[%emt 0:05:04]} 31. Kh1 {[%emt 0:00:30]} Bd4 {[%emt 0:00:54]} 32. Bd8 {[%emt 0:03:34]} Rh6 {[%emt 0:04:46]} (32... Qe8 $142 33. Bf6 Be6) 33. Bg5 {[%emt 0:01:17]} Rg6 {[%emt 0:01:05]} 34. Bf6 {[%emt 0:02:09]} Rh6 {[%emt 0:07:25] [#]} (34... Bc8 $142 35. Qh5 Bc5) 35. Qf4 $1 {[%emt 0:00:43] Double Attack} Rxf6 {[%emt 0:01:15]} 36. Qxd4 {[%emt 0:00:05]} (36. exf6 $142 Qxf6 {[#]} 37. Qc7 $1 {[%mdl 576] Double Attack}) 36... Rg6 {[%emt 0:02:18]} 37. Qd6 {[%emt 0:01:15]} Qxd6 {[%emt 0:01:40]} 38. exd6 {[%emt 0:00:03]} Rxd6 {[%emt 0:00:08]} 39. Re7 {[%emt 0:00:44]} h5 {[%emt 0:00:43]} 40. Kg1 {[%emt 0:00:49]} c5 {[%emt 0:00:19]} 41. Rf3 $18 {[%emt 0:31:03]} Ba4 {[%emt 0:31:59]} 42. Rxf5 {[%emt 0:01:02]} Bxc2 {[%emt 0:00:05]} 43. Rd5 {[%emt 0:00:34]} 0-1